{"text_format":"1","workbook":"xlsx","n_sheets":1,"sheets":["Time Sheet"],"not_rendered":{"charts":0,"images":0,"macros":1,"external_links":0,"defined_names":2,"comments":0,"pivot_tables":0},"unopened":[],"bounds":{"document_bytes":16777216,"sheet_cells":100000,"rows_first":2000,"rows_last":500,"rows_between":2000,"halvings":0,"cell_chars":16384,"cell_head_chars":4096},"cells_cut":0,"cells_raw":0,"read":"whole","date_system":"1900"}

{"sheet":"Time Sheet","index":0,"n_rows":54,"n_cols":25,"rows_kept":54,"cut":false,"hidden":false,"merged":[[0,10,0,11],[2,5,2,7],[9,7,15,12],[16,7,24,12],[2,1,2,2],[4,8,4,11],[6,8,6,9],[2,8,2,11],[6,2,6,4],[4,5,4,7],[6,5,6,7],[4,1,4,3],[25,7,29,12],[30,7,32,12],[34,7,44,12],[53,3,53,7],[49,10,49,11],[51,10,51,11],[49,3,49,7],[51,3,51,7]]}
["BRYN MAWR COLLEGE STUDENT TIME SHEET",null,null,null,null,null,null,null,null,"PAY PERIOD ENDING DATE:",null,null,"v1.3"]
[]
["ID:",null,null,null,null,"DEPARTMENT NAME:",null,null,"Undergraduate Deans Office"]
[]
["NAME:",null,null,null,null,"16-DIGIT ACCOUNT:",null,null,"1-51200-00290-99999"]
[]
[null,null,null,null,null,"RATE OF PAY:",null,null,14]
[]
["Record Time In and Time Out for each day worked."]
["Week 1","Date","Time In","Time Out","Regular","Overtime",null,"Identification:\nYour 7 digit BMC ID number (Haverford ID’s are not accepted), Legal Name (no nicknames), 16-digit Account Code and Rate of Pay are required.  If you do not have this information, ask your supervisor.  If you currently have multiple jobs, a separate time sheet must be completed for each of your jobs for each pay period for which you are submitting hours.",null,null,null,null,null,null,"worked","cumulative","ot cumul",null,null,"start calc","out hour",null,null,null,"pay period"]
[null,{"$f":"IF($K$1=\"\",\"\",IF(A11=\"Wed\",$K$1-13,IF(A11=\"Thurs\",$K$1-12,IF(A11=\"Fri\",$K$1-11,IF(A11=\"Sat\",$K$1-10,IF(A11=\"Sun\",$K$1-9,IF(A11=\"Mon\",$K$1-8,IF(A11=\"Tues\",$K$1-7,\"\"))))))))","v":""},null,null,{"$f":"O11","v":0},null,null,null,null,null,null,null,null,null,{"$f":"ROUND(IF(T11=0,0,U11+MINUTE(D11)/60-HOUR(C11)-MINUTE(C11)/60), 2)","v":0},{"$f":"O11","v":0},null,null,null,{"$f":"IF(C11<>\"\", IF(D11 <> \"\", 1, 0), 0)","v":0},{"$f":"IF(T11=1,IF(D11=\"\",0,IF(HOUR(C11)>HOUR(D11),HOUR(D11)+24,HOUR(D11))),0)","v":0},null,null,"Wed",{"$f":"DATEVALUE(TEXT(TODAY(), \"mm/dd/yyyy\")) + 14 - MOD((DATEVALUE(TEXT(TODAY(), \"mm/dd/yyyy\")) - DATEVALUE(\"1/12/2010\")), 14)","v":"2025-02-04"}]
[null,{"$f":"IF($K$1=\"\",\"\",IF(A12=\"Wed\",$K$1-13,IF(A12=\"Thurs\",$K$1-12,IF(A12=\"Fri\",$K$1-11,IF(A12=\"Sat\",$K$1-10,IF(A12=\"Sun\",$K$1-9,IF(A12=\"Mon\",$K$1-8,IF(A12=\"Tues\",$K$1-7,\"\"))))))))","v":""},null,null,{"$f":"IF(O12=0,0,O12-F12)","v":0},{"$f":"IF(O12=0,0,IF(P12>40,P12-40-Q11,0))","v":0},null,null,null,null,null,null,null,null,{"$f":"ROUND(IF(T12=0,0,U12+MINUTE(D12)/60-HOUR(C12)-MINUTE(C12)/60), 2)","v":0},{"$f":"P11+O12","v":0},{"$f":"Q11+IF(P12>40,P12-40-Q11,0)","v":0},null,null,{"$f":"IF(C12<>\"\", IF(D12 <> \"\", 1, 0), 0)","v":0},{"$f":"IF(T12=1,IF(D12=\"\",0,IF(HOUR(C12)>HOUR(D12),HOUR(D12)+24,HOUR(D12))),0)","v":0},null,null,"Thurs",{"$f":"Y11-14","v":"2025-01-21"}]
[null,"",null,null,{"$f":"IF(O13=0,0,O13-F13)","v":0},{"$f":"IF(O13=0,0,IF(P13>40,P13-40-Q12,0))","v":0},null,null,null,null,null,null,null,null,{"$f":"ROUND(IF(T13=0,0,U13+MINUTE(D13)/60-HOUR(C13)-MINUTE(C13)/60), 2)","v":0},{"$f":"P12+O13","v":0},0,null,null,0,0,null,null,"Fri",{"$f":"Y12-14","v":"2025-01-07"}]
[null,"",null,null,0,0,null,null,null,null,null,null,null,null,0,0,0,null,null,0,0,null,null,"Sat","2024-12-24"]
[null,"",null,null,0,0,null,null,null,null,null,null,null,null,0,0,0,null,null,0,0,null,null,"Sun","2024-12-10"]
[null,"",null,null,0,0,null,null,null,null,null,null,null,null,0,0,0,null,null,0,0,null,null,"Mon","2024-11-26"]
[null,"",null,null,0,0,null,"Recording Date and Time: \nEnter the period ending date according to the payroll schedule.  You will need to complete a separate time sheet if you need to submit hours from a prior pay period.  When entering the dates worked, simply choose the day of the week you worked and the date will be automatically populated for you.  Time should be recorded by using numbers 1 to 12 to identify the hours in a day and 01 through 59 to identify the minutes in a day and indicate AM or PM (Please remember that noon is 12 PM).",null,null,null,null,null,null,0,0,0,null,null,0,0,null,null,"Tues","2024-11-12"]
[null,"",null,null,0,0,null,null,null,null,null,null,null,null,0,0,0,null,null,0,0,null,null,null,"2024-10-29"]
[null,"",null,null,0,0,null,null,null,null,null,null,null,null,0,0,0,null,null,0,0,null,null,null,"2024-10-15"]
[null,"",null,null,0,0,null,null,null,null,null,null,null,null,0,0,0,null,null,0,0,null,null,null,"2024-10-01"]
[null,"",null,null,0,0,null,null,null,null,null,null,null,null,0,0,0,null,null,0,0,null,null,null,"2024-09-17"]
[null,"",null,null,0,0,null,null,null,null,null,null,null,null,0,0,0,null,null,0,0,null,null,null,"2024-09-03"]
[null,"",null,null,0,0,null,null,null,null,null,null,null,null,0,0,0,null,null,0,0,null,null,null,"2024-08-20"]
[null,"",null,null,0,0,null,null,null,null,null,null,null,null,0,0,0,null,null,0,0,null,null,null,"2024-08-06"]
[null,"",null,null,0,0,null,null,null,null,null,null,null,null,0,0,0,null,null,0,0,null,null,null,"2024-07-23"]
["Subtotal Week 1:",null,null,null,{"$f":"SUM(E11:E25)","v":0},{"$f":"SUM(F12:F25)","v":0},null,"Recording Time In and Out and Hours Worked: \nYou are required to record your time in and out for each day worked.  If you take multiple breaks during any given day, you must add it on a new line by choosing the same day of the week. The hours per day will be automatically calculated for you.",null,null,null,null,null,null,null,null,null,null,null,null,null,null,null,null,"2024-07-09"]
[null,null,null,null,null,null,null,null,null,null,null,null,null,null,null,null,null,null,null,null,null,null,null,null,"2024-06-25"]
["Week 2","Date","Time In","Time Out","Regular","Overtime",null,null,null,null,null,null,null,null,null,null,null,null,null,null,null,null,null,null,"2024-06-11"]
[null,{"$f":"IF($K$1=\"\",\"\",IF(A29=\"Wed\",$K$1-6,IF(A29=\"Thurs\",$K$1-5,IF(A29=\"Fri\",$K$1-4,IF(A29=\"Sat\",$K$1-3,IF(A29=\"Sun\",$K$1-2,IF(A29=\"Mon\",$K$1-1,IF(A29=\"Tues\",$K$1,\"\"))))))))","v":""},null,null,{"$f":"O29","v":0},null,null,null,null,null,null,null,null,null,{"$f":"ROUND(IF(T29=0,0,U29+MINUTE(D29)/60-HOUR(C29)-MINUTE(C29)/60), 2)","v":0},{"$f":"O29","v":0},null,null,null,{"$f":"IF(C29<>\"\", IF(D29 <> \"\", 1, 0), 0)","v":0},{"$f":"IF(T29=1,IF(D29=\"\",0,IF(HOUR(C29)>HOUR(D29),HOUR(D29)+24,HOUR(D29))),0)","v":0},null,null,null,"2024-05-28"]
[null,{"$f":"IF($K$1=\"\",\"\",IF(A30=\"Wed\",$K$1-6,IF(A30=\"Thurs\",$K$1-5,IF(A30=\"Fri\",$K$1-4,IF(A30=\"Sat\",$K$1-3,IF(A30=\"Sun\",$K$1-2,IF(A30=\"Mon\",$K$1-1,IF(A30=\"Tues\",$K$1,\"\"))))))))","v":""},null,null,{"$f":"IF(O30=0,0,O30-F30)","v":0},{"$f":"IF(O30=0,0,IF(P30>40,P30-40-Q29,0))","v":0},null,null,null,null,null,null,null,null,{"$f":"ROUND(IF(T30=0,0,U30+MINUTE(D30)/60-HOUR(C30)-MINUTE(C30)/60), 2)","v":0},{"$f":"P29+O30","v":0},{"$f":"Q29+IF(P30>40,P30-40-Q29,0)","v":0},null,null,0,0,null,null,null,"2024-05-14"]
[null,"",null,null,{"$f":"IF(O31=0,0,O31-F31)","v":0},{"$f":"IF(O31=0,0,IF(P31>40,P31-40-Q30,0))","v":0},null,"Recording Overtime Hours: \nOvertime does not occur until your hours exceed forty hours in a work week.  When overtime is applicable, Excel will calculate it automatically.",null,null,null,null,null,null,{"$f":"ROUND(IF(T31=0,0,U31+MINUTE(D31)/60-HOUR(C31)-MINUTE(C31)/60), 2)","v":0},0,0,null,null,0,0,null,null,null,"2024-04-30"]
[null,"",null,null,0,0,null,null,null,null,null,null,null,null,0,0,0,null,null,0,0,null,null,null,"2024-04-16"]
[null,"",null,null,0,0,null,null,null,null,null,null,null,null,0,0,0,null,null,0,0,null,null,null,"2024-04-02"]
[null,"",null,null,0,0,null,null,null,null,null,null,null,null,0,0,0,null,null,0,0,null,null,null,"2024-03-19"]
[null,"",null,null,0,0,null,"Signatures: \nWhen your time sheet has been completed, print it, sign it and give it to your supervisor for his/her signature.  Save a copy for your records.\n\nYour signed time sheet must then be sent to campus box 1680 A or via campus mail to the Payroll Office.\n\nYour signature indicates that you agree that the totaled hours are correct as recorded on your time sheet.\n\nYour supervisor’s signature is necessary to authorize payment for your hours.  Your time sheet will not be processed without your supervisor’s signature.",null,null,null,null,null,null,0,0,0,null,null,0,0,null,null,null,"2024-03-05"]
[null,"",null,null,0,0,null,null,null,null,null,null,null,null,0,0,0,null,null,0,0,null,null,null,"2024-02-20"]
[null,"",null,null,0,0,null,null,null,null,null,null,null,null,0,0,0,null,null,0,0,null,null,null,"2024-02-06"]
[null,"",null,null,0,0,null,null,null,null,null,null,null,null,0,0,0,null,null,0,0]
[null,"",null,null,0,0,null,null,null,null,null,null,null,null,0,0,0,null,null,0,0]
[null,"",null,null,0,0,null,null,null,null,null,null,null,null,0,0,0,null,null,0,0]
[null,"",null,null,0,0,null,null,null,null,null,null,null,null,0,0,0,null,null,0,0]
[null,"",null,null,0,0,null,null,null,null,null,null,null,null,0,0,0,null,null,0,0]
[null,"",null,null,0,0,null,null,null,null,null,null,null,null,0,0,{"$f":"IF(O43=0,0,Q42+F43)","v":0},null,null,0,0]
["Subtotal Week 2:",null,null,null,{"$f":"SUM(E29:E43)","v":0},{"$f":"SUM(F30:F43)","v":0}]
[]
["Grand Totals:",null,null,null,{"$f":"E26+E44","v":0},{"$f":"F26++F44","v":0}]
[]
["Pay Period Total Hours:",null,null,{"$f":"E46+F46","v":0}]
[]
["Employee Signature:",null,null,null,null,null,null,null,null,"Date:"]
[]
["Supervisor Signature:",null,null,null,null,null,null,null,null,"Date:"]
[]
["Supervisor's Printed Name:"]